fUSD/lending_fUSD_20260207
["ID","MTS","AMOUNT","RATE_DAILY","PERIOD"]
[404727549,1770496249234,-150.0,0.00035695,4]
[404727550,1770496249243,-150.0,0.00035699,7]
[404727551,1770496249253,-150.0,0.00035706,4]
[404727552,1770496249263,-150.0,0.00035718,4]
[404727553,1770496249272,-150.0,0.0003573,5]
[404727554,1770496249282,-151.0,0.0003574,4]
[404727555,1770496249291,-278.0,0.0003574,4]
[404727556,1770496249301,-300.0,0.0003574,4]
[404727557,1770496249311,-300.0,0.0003574,4]
[404727558,1770496249322,-150.0,0.00035742,5]
[404727559,1770496249332,-150.0,0.00035743,4]
[404727560,1770496249342,-150.0,0.00035744,7]
[404727561,1770496249351,-150.0,0.00035746,4]
[404727562,1770496249361,-150.0,0.00035749,4]
[404727563,1770496249370,-150.0,0.00035752,4]
[404727564,1770496249379,-150.0,0.00035753,5]
[404727565,1770496249389,-150.0,0.00035755,4]
[404727566,1770496249398,-150.0,0.00035758,4]
[404727567,1770496249407,-150.0,0.00035761,4]
[404727568,1770496249417,-150.0,0.00035764,4]
[404727569,1770496249426,-150.0,0.00035765,5]
[404727570,1770496249435,-150.0,0.00035767,4]
[404727571,1770496249445,-150.0,0.0003577,4]
[404727572,1770496249455,-150.0,0.00035773,4]
[404727573,1770496249464,-150.0,0.00035776,4]
[404727574,1770496249473,-150.0,0.00035777,5]
[404727575,1770496249483,-150.0,0.00035779,4]
[404727576,1770496249492,-150.0,0.00035789,5]
[404727577,1770496249502,-150.0,0.0003579,7]
[404727578,1770496249511,-150.0,0.00035795,4]
[404727579,1770496249520,-150.0,0.00035795,4]
[404727580,1770496249531,-150.0,0.00035795,4]
[404727581,1770496249540,-150.0,0.000358,5]
[404727582,1770496249550,-150.0,0.00035812,5]
[404727583,1770496249559,-152.488,0.00035817,43]
[404727584,1770496249568,-2013.473,0.00035817,43]
[404727585,1770496249578,-150.0,0.00035824,5]
[404727586,1770496249587,-150.0,0.00035836,6]
[404727587,1770496249596,-150.0,0.00035836,7]
[404727588,1770496249606,-150.0,0.00035836,6]
[404727589,1770496249615,-150.0,0.00035836,6]
[404727590,1770496249625,-150.0,0.00035836,6]
[404727591,1770496249634,-150.0,0.0003584,4]
[404727592,1770496249644,-150.0,0.00035843,4]
[404727593,1770496249655,-150.0,0.00035846,4]
[404727594,1770496249668,-150.0,0.00035847,6]
[404727595,1770496249678,-278.0,0.00035849,4]
[404727596,1770496249687,-172.0,0.00035849,4]
[404727597,1770496249697,-150.0,0.00035859,6]
[404727598,1770496249709,-1000.0,0.00035863,5]
[404727599,1770496249719,-150.0,0.00035871,6]
[404727600,1770496249731,-150.0,0.00035881,8]
[404727601,1770496249741,-150.0,0.00035883,6]
[404727602,1770496249752,-199.9806,0.00035888,30]
[404727603,1770496249762,-165.0,0.0003589,30]
[404727604,1770496249774,-150.0,0.00035894,6]
[404727605,1770496249783,-2000.0,0.000359,2]
[404727606,1770496249795,-1414.68,0.000359,2]
[404727607,1770496249805,-150.0,0.00035906,6]
[404727608,1770496249814,-150.0,0.00035918,6]
[404727609,1770496249823,-150.0,0.00035927,8]
[404727610,1770496249833,-150.0,0.0003593,6]
[404727611,1770496249842,-150.0,0.00035941,6]
[404727612,1770496249855,-150.0,0.00035953,7]
[404727613,1770496249864,-150.0,0.00035965,7]
[404727614,1770496249874,-300.0,0.0003597,2]
[404727615,1770496249883,-400.0,0.0003597,2]
[404727616,1770496249898,-200.0,0.00035972,2]
[404727617,1770496249908,-200.0,0.00035972,2]
[404727618,1770496249919,-200.0,0.00035972,2]
[404727619,1770496249929,-200.0,0.00035972,2]
[404727620,1770496249938,-150.0,0.00035973,9]
[404727621,1770496249949,-150.0,0.00035977,7]
[404727622,1770496249960,-150.0,0.00035988,7]
[404727623,1770496249970,-522.6,0.00036,30]
[404727624,1770496249980,-216.0,0.00036,7]
[404727625,1770496249996,-2000.0,0.00036,20]
[404727626,1770496250005,-160.0,0.00036,7]
[404727627,1770496250016,-1000.0,0.00036,20]
[404727628,1770496250025,-165.0,0.00036,30]
[404727629,1770496250035,-4203.30523098,0.00036,2]
[404727630,1770496250045,-16293.07,0.00036,2]
[404727631,1770496250055,-150.0,0.00036018,9]
[404727632,1770496250065,-150.0,0.00036064,10]
[404727633,1770496250075,-550.0,0.00036064,5]
[404727634,1770496250085,-199.9806,0.00036088,30]
[404727635,1770496250095,-150.0,0.0003611,10]
[404727636,1770496250104,-1500.0,0.00036137,5]
[404727637,1770496250114,-150.0,0.00036155,11]
[404727638,1770496250123,-150.0,0.00036201,11]
[404727639,1770496250133,-250.0,0.00036221,5]
[404727640,1770496250142,-708.80161609,0.00036221,5]
[404727641,1770496250152,-273.0,0.00036247,12]
[404727642,1770496250163,-2228.10668164,0.0003625,2]
[404727643,1770496250173,-199.9806,0.00036288,30]
[404727644,1770496250183,-200.0,0.00036332,2]
[404727645,1770496250192,-200.0,0.00036332,2]
[404727646,1770496250202,-200.0,0.00036332,2]
[404727647,1770496250212,-500.00000009,0.00036411,5]
[404727648,1770496250222,-199.9806,0.00036488,30]
[404727649,1770496250232,-177.51,0.000365,14]
[404727650,1770496250242,-300.080332,0.00036568,80]
[404727651,1770496250252,-650.0,0.00036612,5]
[404727652,1770496250261,-150.0,0.00036649,2]
[404727653,1770496250270,-199.69,0.00036681,2]
[404727654,1770496250280,-199.9806,0.00036688,30]
[404727655,1770496250290,-200.0,0.00036695,2]
[404727656,1770496250299,-522.6,0.0003672,30]
[404727657,1770496250308,-350.0,0.00036768,5]
[404727658,1770496250317,-1414.68,0.000368,2]
[404727659,1770496250327,-16293.07,0.000368,14]
[404727660,1770496250336,-199.9806,0.00036888,30]
[404727661,1770496250346,-666.602,0.00036888,7]
[404727662,1770496250355,-2000.0,0.00037,20]
[404727663,1770496250364,-2000.0,0.00037,20]
[404727664,1770496250374,-1000.0,0.00037,20]
[404727665,1770496250383,-1560.49289465,0.00037,30]
[404727666,1770496250392,-200.0,0.00037062,2]
[404727667,1770496250402,-2015.79,0.00037064,2]
[404727668,1770496250411,-1032.8,0.00037067,120]
[404727669,1770496250421,-199.9806,0.00037088,30]
[404727670,1770496250431,-160.0,0.000371,7]
[404727671,1770496250441,-747.56629257,0.0003716,5]
[404727672,1770496250451,-1272.0,0.000372,2]
[404727673,1770496250460,-1206.0,0.000372,2]
[404727674,1770496250469,-917.0,0.000372,2]
[404727675,1770496250479,-616.0,0.000372,2]
[404727676,1770496250489,-3255.0,0.000372,2]
[404727677,1770496250500,-185.51510201,0.000372,120]
[404727678,1770496250511,-185.51510198,0.000372,120]
[404727679,1770496250521,-185.51510198,0.000372,120]
[404727680,1770496250531,-185.51510198,0.000372,120]
[404727681,1770496250540,-185.51510198,0.000372,120]
[404727682,1770496250551,-152.0,0.00037215,3]
[404727683,1770496250560,-199.9806,0.00037288,30]
[404727684,1770496250570,-450.0,0.00037316,5]
[404727685,1770496250581,-165.0,0.00037397,30]
[404727686,1770496250592,-16293.07,0.000374,2]
[404727687,1770496250603,-522.6,0.0003744,30]
[404727688,1770496250614,-199.9806,0.00037488,30]
[404727689,1770496250624,-3558.43,0.000375,14]
[404727690,1770496250634,-150.0,0.00037631,2]
[404727691,1770496250644,-150.0,0.00037631,2]
[404727692,1770496250656,-150.0,0.00037631,2]
[404727693,1770496250667,-150.0,0.00037631,2]
[404727694,1770496250677,-150.0,0.00037631,2]
[404727695,1770496250686,-150.0,0.00037631,2]
[404727696,1770496250696,-150.0,0.00037631,2]
[404727697,1770496250705,-150.0,0.00037631,2]
[404727698,1770496250715,-150.0,0.00037631,2]
[404727699,1770496250724,-150.0,0.00037631,2]
[404727700,1770496250733,-199.9806,0.00037688,30]
[404727701,1770496250743,-2228.10668164,0.00037784,2]
[404727702,1770496250753,-6545.14664054,0.000378,14]
[404727703,1770496251543,-151.0,0.0001333,2]
[404727704,1770496251553,-151.0,0.00015644,2]
[404727705,1770496251562,-151.0,0.00016874,2]
[404727706,1770496251573,-3543.68504694,0.000179,2]
[404727707,1770496251583,-151.0,0.00017997,2]
[404727708,1770496251594,-151.0,0.00020017,2]
[404727709,1770496251604,-9747.92335946,0.000378,14]
[404727710,1770496251614,-400.71004244,0.00037864,5]
[404727711,1770496251623,-199.9806,0.00037888,30]
[404727712,1770496251633,-576.77491399,0.000379,120]
[404727713,1770496251642,-2447.0,0.00037903,2]
[404727714,1770496251651,-233.73677134,0.00037999,120]
[404727715,1770496251660,-199.9806,0.00038088,30]
[404727716,1770496251670,-199.69,0.00038092,2]
[404727717,1770496251680,-12554.7316035,0.000381,33]
[404727718,1770496251691,-522.6,0.0003816,30]
[404727719,1770496251702,-199.9806,0.00038288,30]
[404727720,1770496251711,-295.63620256,0.00038356,60]
[404727721,1770496251721,-500.0,0.00038356,60]
[404727722,1770496251731,-202.21272146,0.00038387,6]
[404727723,1770496251743,-500.0,0.00038411,60]
[404727724,1770496251753,-500.0,0.00038466,60]
[404727725,1770496251764,-150.0,0.00038482,2]
[404727726,1770496251775,-199.9806,0.00038488,30]
[404727727,1770496251784,-500.0,0.0003852,60]
[404727728,1770496251794,-500.0,0.00038575,60]
[404727729,1770496251803,-163.0,0.00038598,11]
[404727730,1770496251813,-500.0,0.0003863,60]
[404727731,1770496251822,-500.0,0.00038685,60]
[404727732,1770496251832,-199.9806,0.00038688,30]
[404727733,1770496251841,-500.0,0.000387,120]
[404727734,1770496251855,-500.0,0.000387,120]
[404727735,1770496251864,-500.0,0.000387,120]
[404727736,1770496251874,-500.0,0.000387,120]
[404727737,1770496251884,-500.0,0.000387,120]
[404727738,1770496251895,-500.0,0.0003874,60]
[404727739,1770496251905,-1710.0,0.00038763,2]
[404727740,1770496251913,-500.0,0.00038794,60]
[404727741,1770496251925,-3702.17787875,0.00038834,2]
[404727742,1770496251935,-305.49465499,0.00038849,60]
[404727743,1770496251943,-382.53579138,0.0003886,7]
[404727744,1770496251953,-522.6,0.0003888,120]
[404727745,1770496251962,-195.33076979,0.00038905,2]
[404727746,1770496251971,-1000.0,0.00038976,7]
[404727747,1770496251980,-205.49965253,0.0003899,120]
[404727748,1770496251990,-11069.27743827,0.00039,120]
[404727749,1770496251999,-160.0,0.00039,120]
[404727750,1770496252008,-810.119,0.00039,120]
[404727751,1770496252018,-1000.0,0.00039,30]
[404727752,1770496252028,-1000.0,0.00039,90]
[404727753,1770496252037,-1000.0,0.00039,90]
[404727754,1770496252046,-1000.0,0.00039,90]
[404727755,1770496252055,-1000.0,0.00039,90]
[404727756,1770496252065,-1000.0,0.00039,90]
[404727757,1770496252075,-1000.0,0.00039,90]
[404727758,1770496252084,-1000.0,0.00039,90]
[404727759,1770496252094,-1000.0,0.00039,90]
[404727760,1770496252103,-1000.0,0.00039,90]
[404727761,1770496252113,-1000.0,0.00039,90]
[404727762,1770496252123,-1000.0,0.00039,90]
[404727763,1770496252131,-1000.0,0.00039,90]
[404727764,1770496252141,-1000.0,0.00039,90]
[404727765,1770496252150,-1000.0,0.00039,90]
[404727766,1770496252160,-1000.0,0.00039,90]
[404727767,1770496252169,-589.025,0.00039,90]
[404727768,1770496252178,-1500.0,0.00039,120]
[404727769,1770496252187,-1500.0,0.00039,120]
[404727770,1770496252196,-1500.0,0.00039,120]
[404727771,1770496252206,-1500.0,0.00039,120]
[404727772,1770496252215,-1500.0,0.00039,120]
[404727773,1770496252224,-1500.0,0.00039,120]
[404727774,1770496252233,-1500.0,0.00039,120]
[404727775,1770496252242,-1500.0,0.00039,120]
[404727776,1770496252251,-511.527,0.00039,120]
[404727777,1770496252260,-1710.0,0.00039028,7]
[404727778,1770496252270,-151.0,0.00039041,120]
[404727779,1770496252279,-151.0,0.00039041,120]
[404727780,1770496252290,-151.0,0.00039041,120]
[404727781,1770496252300,-151.0,0.00039041,120]
[404727782,1770496252310,-211.50033,0.00039041,120]
[404727783,1770496252319,-1710.0,0.00039058,120]
[404727784,1770496252328,-152.24813467,0.0003907,2]
[404727785,1770496252338,-150.0,0.0003907,2]
[404727786,1770496252350,-150.0,0.0003907,2]
[404727787,1770496252360,-500.0,0.0003907,2]
[404727788,1770496252369,-150.0,0.0003907,2]
[404727789,1770496252378,-150.0,0.0003907,2]
[404727790,1770496252387,-150.0,0.0003907,2]
[404727791,1770496252396,-500.0,0.0003907,2]
[404727792,1770496252404,-1000.0,0.00039085,7]
[404727793,1770496252414,-199.9806,0.00039088,30]
[404727794,1770496252422,-12205.28997785,0.000391,120]
[404727795,1770496252431,-1700.0,0.00039111,120]
[404727796,1770496252440,-150.0,0.00039125,2]
[404727797,1770496252449,-151.76386287,0.00039125,2]
[404727798,1770496252458,-502.13556624,0.00039125,2]
[404727799,1770496252467,-150.43934917,0.00039125,2]
[404727800,1770496252476,-150.0,0.00039125,2]
[404727801,1770496252485,-208.82733922,0.00039125,2]
[404727802,1770496252494,-613.72923299,0.00039125,2]
[404727803,1770496252503,-1000.0,0.00039157,7]
[404727804,1770496252512,-958.1839,0.00039178,30]
[404727805,1770496252521,-241.09659609,0.0003918,2]
[404727806,1770496252531,-1000.0,0.00039192,7]
[404727807,1770496252540,-1000.0,0.00039192,7]
[404727808,1770496252551,-1000.0,0.000392,7]
[404727809,1770496252559,-3558.43,0.000392,14]
[404727810,1770496252570,-1000.0,0.00039217,7]
[404727811,1770496252580,-1000.0,0.00039241,7]
[404727812,1770496252589,-167.0,0.00039267,90]
[404727813,1770496252600,-199.9806,0.00039288,30]
[404727814,1770496252610,-1711.0,0.00039299,120]
[404727815,1770496252620,-1000.0,0.00039299,7]
[404727816,1770496252631,-2228.10668164,0.00039318,2]
[404727817,1770496252639,-599.58044768,0.00039357,7]
[404727818,1770496252650,-1000.0,0.00039358,7]
[404727819,1770496252659,-1844.59449689,0.00039384,2]
[404727820,1770496252668,-1000.0,0.00039397,7]
[404727821,1770496252677,-1000.0,0.00039399,7]
[404727822,1770496252687,-200.0,0.00039474,3]
[404727823,1770496252696,-199.9806,0.00039488,30]
[404727824,1770496252705,-1710.0,0.00039592,120]
[404727825,1770496252715,-2000.0,0.000396,2]
[404727826,1770496252724,-522.6,0.000396,120]
[404727827,1770496252734,-1000.0,0.00039642,7]
[404727828,1770496252743,-200.0,0.00039686,4]
[404727829,1770496252754,-199.9806,0.00039688,30]
[404727830,1770496252764,-151.0,0.00039726,120]
[404727831,1770496252774,-151.0,0.00039726,120]
[404727832,1770496252783,-151.0,0.00039726,120]
[404727833,1770496252793,-151.0,0.00039726,120]
[404727834,1770496252804,-151.0,0.00039726,120]
[404727835,1770496252813,-151.0,0.00039726,120]
[404727836,1770496252822,-151.0,0.00039726,120]
[404727837,1770496252831,-151.0,0.00039726,120]
[404727838,1770496252841,-151.0,0.00039726,120]
[404727839,1770496252853,-344.196764,0.00039726,120]
[404727840,1770496252862,-151.0,0.00039726,120]
[404727841,1770496252871,-344.196764,0.00039726,120]
[404727842,1770496252881,-151.0,0.00039726,120]
[404727843,1770496252891,-151.0,0.00039726,120]
[404727844,1770496252903,-344.196764,0.00039726,120]
[404727845,1770496252912,-151.0,0.00039726,120]
[404727846,1770496252924,-344.196764,0.00039726,120]
[404727847,1770496252935,-261.915161,0.00039726,120]
[404727848,1770496252945,-151.0,0.00039726,120]
[404727849,1770496252955,-261.915161,0.00039726,120]
[404727850,1770496252966,-428.088228,0.00039726,120]
[404727851,1770496252975,-261.915161,0.00039726,120]
[404727852,1770496252984,-428.088228,0.00039726,120]
[404727853,1770496252993,-261.915161,0.00039726,120]
[404727854,1770496253002,-151.0,0.00039726,120]
[404727855,1770496253012,-428.088228,0.00039726,120]
[404727856,1770496253021,-151.0,0.00039726,120]
[404727857,1770496253031,-428.088228,0.00039726,120]
[404727858,1770496253040,-500.899189,0.00039726,120]
[404727859,1770496253049,-500.899189,0.00039726,120]
[404727860,1770496253058,-500.899189,0.00039726,120]
[404727861,1770496253067,-500.899189,0.00039726,120]
[404727862,1770496253076,-243.162388,0.00039726,120]
[404727863,1770496253086,-151.0,0.00039726,120]
[404727864,1770496253094,-177.764084,0.00039726,120]
[404727865,1770496253103,-177.764084,0.00039726,120]
[404727866,1770496253112,-177.764084,0.00039726,120]
[404727867,1770496253121,-177.764084,0.00039726,120]
[404727868,1770496253131,-151.0,0.00039726,120]
[404727869,1770496253139,-151.0,0.00039726,120]
[404727870,1770496253148,-166.542074,0.00039726,120]
[404727871,1770496253157,-502.808381,0.00039726,120]
[404727872,1770496253165,-502.808381,0.00039726,120]
[404727873,1770496253175,-502.808381,0.00039726,120]
[404727874,1770496253184,-502.808381,0.00039726,120]
[404727875,1770496253193,-394.02289,0.00039726,120]
[404727876,1770496253204,-394.02289,0.00039726,120]
[404727877,1770496253213,-394.02289,0.00039726,120]
[404727878,1770496253223,-394.02289,0.00039726,120]
[404727879,1770496253231,-160.211758,0.00039726,120]
[404727880,1770496253241,-151.0,0.00039726,120]
[404727881,1770496253250,-151.0,0.00039726,120]
[404727882,1770496253259,-157.639954,0.00039726,120]
[404727883,1770496253269,-356.992836,0.00039726,120]
[404727884,1770496253279,-356.992836,0.00039726,120]
[404727885,1770496253287,-356.992836,0.00039726,120]
[404727886,1770496253297,-356.992836,0.00039726,120]
[404727887,1770496253307,-151.0,0.00039726,120]
[404727888,1770496253316,-252.212261,0.00039726,120]
[404727889,1770496253325,-356.992836,0.00039726,120]
[404727890,1770496253334,-356.992836,0.00039726,120]
[404727891,1770496253343,-356.992836,0.00039726,120]
[404727892,1770496253353,-356.992836,0.00039726,120]
[404727893,1770496253362,-770.692396,0.00039726,120]
[404727894,1770496253371,-770.692396,0.00039726,120]
[404727895,1770496253381,-770.692396,0.00039726,120]
[404727896,1770496253390,-261.906062,0.00039726,120]
[404727897,1770496253399,-770.692396,0.00039726,120]
[404727898,1770496253407,-261.906062,0.00039726,120]
[404727899,1770496253416,-770.692396,0.00039726,120]
[404727900,1770496253424,-261.906062,0.00039726,120]
[404727901,1770496253433,-770.692396,0.00039726,120]
[404727902,1770496253442,-261.906062,0.00039726,120]
[404727903,1770496253451,-160.7704,0.00039726,120]
[404727904,1770496253461,-151.0,0.00039726,120]
[404727905,1770496253471,-151.0,0.00039726,120]
[404727906,1770496253480,-770.692396,0.00039726,120]
[404727907,1770496253489,-261.906062,0.00039726,120]
[404727908,1770496253499,-770.692396,0.00039726,120]
[404727909,1770496253508,-261.906062,0.00039726,120]
[404727910,1770496253519,-261.906062,0.00039726,120]
[404727911,1770496253528,-261.906062,0.00039726,120]
[404727912,1770496253538,-266.693393,0.00039726,120]
[404727913,1770496253547,-796.795378,0.00039726,120]
[404727914,1770496253557,-266.693393,0.00039726,120]
[404727915,1770496253566,-796.795378,0.00039726,120]
[404727916,1770496253576,-354.385804,0.00039726,120]
[404727917,1770496253585,-354.385804,0.00039726,120]
[404727918,1770496253595,-266.693393,0.00039726,120]
[404727919,1770496253603,-796.795378,0.00039726,120]
[404727920,1770496253612,-266.693393,0.00039726,120]
[404727921,1770496253622,-796.795378,0.00039726,120]
[404727922,1770496253635,-354.385804,0.00039726,120]
[404727923,1770496253644,-266.693393,0.00039726,120]
[404727924,1770496253654,-354.385804,0.00039726,120]
[404727925,1770496253663,-796.795378,0.00039726,120]
[404727926,1770496253673,-266.693393,0.00039726,120]
[404727927,1770496253683,-796.795378,0.00039726,120]
[404727928,1770496253693,-354.385804,0.00039726,120]
[404727929,1770496253702,-266.693393,0.00039726,120]
[404727930,1770496253712,-354.385804,0.00039726,120]
[404727931,1770496253722,-796.795378,0.00039726,120]
[404727932,1770496253732,-266.693393,0.00039726,120]
[404727933,1770496253741,-796.795378,0.00039726,120]
[404727934,1770496253750,-354.385804,0.00039726,120]
[404727935,1770496253760,-354.385804,0.00039726,120]
[404727936,1770496253770,-151.0,0.00039726,120]
[404727937,1770496253780,-151.0,0.00039726,120]
[404727938,1770496253789,-151.0,0.00039726,120]
[404727939,1770496253799,-151.0,0.00039726,120]
[404727940,1770496253809,-151.0,0.00039726,120]
[404727941,1770496253819,-151.0,0.00039726,120]
[404727942,1770496253828,-151.0,0.00039726,120]
[404727943,1770496253837,-151.0,0.00039726,120]
[404727944,1770496253849,-151.0,0.00039726,120]
[404727945,1770496253859,-151.0,0.00039726,120]
[404727946,1770496253868,-151.0,0.00039726,120]
[404727947,1770496253878,-151.0,0.00039726,120]
[404727948,1770496253888,-151.0,0.00039726,120]
[404727949,1770496253898,-151.0,0.00039726,120]
[404727950,1770496253908,-151.0,0.00039726,120]
[404727951,1770496253919,-157.486247,0.00039726,120]
[404727952,1770496253930,-151.0,0.00039726,120]
[404727953,1770496253939,-151.0,0.00039726,120]
[404727954,1770496253949,-260.722752,0.00039726,120]
[404727955,1770496253958,-171.14165,0.00039726,120]
[404727956,1770496253968,-151.0,0.00039726,120]
[404727957,1770496253977,-151.0,0.00039726,120]
[404727958,1770496253987,-366.303982,0.00039726,120]
[404727959,1770496253996,-366.303982,0.00039726,120]
[404727960,1770496254005,-366.303982,0.00039726,120]
[404727961,1770496254015,-274.292,0.00039726,120]
[404727962,1770496254026,-366.303982,0.00039726,120]
[404727963,1770496254036,-202.335741,0.00039726,120]
[404727964,1770496254045,-274.292,0.00039726,120]
[404727965,1770496254055,-153.918653,0.00039726,120]
[404727966,1770496254066,-366.303982,0.00039726,120]
[404727967,1770496254075,-366.303982,0.00039726,120]
[404727968,1770496254085,-274.292,0.00039726,120]
[404727969,1770496254095,-274.292,0.00039726,120]
[404727970,1770496254104,-366.303982,0.00039726,120]
[404727971,1770496254114,-274.292,0.00039726,120]
[404727972,1770496254123,-366.303982,0.00039726,120]
[404727973,1770496254132,-274.292,0.00039726,120]
[404727974,1770496254142,-274.292,0.00039726,120]
[404727975,1770496254151,-274.292,0.00039726,120]
[404727976,1770496254160,-154.248226,0.00039726,120]
[404727977,1770496254170,-198.72788,0.00039726,120]
[404727978,1770496254179,-198.72788,0.00039726,120]
[404727979,1770496254189,-198.72788,0.00039726,120]
[404727980,1770496254198,-198.72788,0.00039726,120]
[404727981,1770496254207,-405.622787,0.00039726,120]
[404727982,1770496254217,-405.622787,0.00039726,120]
[404727983,1770496254226,-198.72788,0.00039726,120]
[404727984,1770496254234,-198.72788,0.00039726,120]
[404727985,1770496254243,-405.622787,0.00039726,120]
[404727986,1770496254253,-405.622787,0.00039726,120]
[404727987,1770496254262,-198.72788,0.00039726,120]
[404727988,1770496254271,-198.72788,0.00039726,120]
[404727989,1770496254281,-405.622787,0.00039726,120]
[404727990,1770496254289,-405.622787,0.00039726,120]
[404727991,1770496254299,-405.622787,0.00039726,120]
[404727992,1770496254307,-405.622787,0.00039726,120]
[404727993,1770496254316,-481.99533,0.00039726,31]
[404727994,1770496254325,-481.99533,0.00039726,31]
[404727995,1770496254334,-319.7639,0.00039726,120]
[404727996,1770496254343,-319.7639,0.00039726,120]
[404727997,1770496254352,-481.99533,0.00039726,31]
[404727998,1770496254362,-481.99533,0.00039726,31]
[404727999,1770496254371,-319.7639,0.00039726,120]
[404728000,1770496254380,-203.769917,0.00039726,120]
[404728001,1770496254390,-319.7639,0.00039726,120]
[404728002,1770496254535,-481.99533,0.00039726,31]
[404728003,1770496254566,-203.769917,0.00039726,120]
[404728004,1770496254575,-481.99533,0.00039726,31]
[404728005,1770496254584,-319.7639,0.00039726,120]
[404728006,1770496254593,-319.7639,0.00039726,120]
[404728007,1770496254603,-203.769917,0.00039726,120]
[404728008,1770496254612,-481.99533,0.00039726,31]
[404728009,1770496254621,-481.99533,0.00039726,31]
[404728010,1770496254631,-203.769917,0.00039726,120]
[404728011,1770496254642,-319.7639,0.00039726,120]
[404728012,1770496254651,-319.7639,0.00039726,120]
[404728013,1770496254661,-203.769917,0.00039726,120]
[404728014,1770496254673,-203.769917,0.00039726,120]
[404728015,1770496254683,-151.0,0.00039726,120]
[404728016,1770496254694,-203.769917,0.00039726,120]
[404728017,1770496254705,-203.769917,0.00039726,120]
[404728018,1770496254716,-151.0,0.00039726,120]
[404728019,1770496254726,-151.0,0.00039726,120]
[404728020,1770496254737,-151.0,0.00039726,120]
[404728021,1770496254749,-151.0,0.00039726,120]
[404728022,1770496254759,-151.0,0.00039726,120]
[404728023,1770496254767,-151.0,0.00039726,120]
[404728024,1770496254776,-151.0,0.00039726,120]
[404728025,1770496254786,-202.437854,0.00039726,120]
[404728026,1770496254796,-157.292835,0.00039726,120]
[404728027,1770496254806,-202.437854,0.00039726,120]
[404728028,1770496254817,-202.437854,0.00039726,120]
[404728029,1770496254827,-202.437854,0.00039726,120]
[404728030,1770496254836,-202.437854,0.00039726,120]
[404728031,1770496254846,-202.437854,0.00039726,120]
[404728032,1770496254859,-151.0,0.00039726,120]
[404728033,1770496254868,-202.437854,0.00039726,120]
[404728034,1770496254877,-151.0,0.00039726,120]
[404728035,1770496254886,-202.437854,0.00039726,120]
[404728036,1770496254897,-382.622478,0.00039726,120]
[404728037,1770496254906,-382.622478,0.00039726,120]
[404728038,1770496254915,-151.0,0.00039726,120]
[404728039,1770496254926,-151.0,0.00039726,120]
[404728040,1770496254935,-382.622478,0.00039726,120]
[404728041,1770496254944,-382.622478,0.00039726,120]
[404728042,1770496254953,-151.0,0.00039726,120]
[404728043,1770496254962,-151.0,0.00039726,120]
[404728044,1770496254972,-382.622478,0.00039726,120]
[404728045,1770496254981,-382.622478,0.00039726,120]
[404728046,1770496254991,-250.173975,0.00039726,120]
[404728047,1770496255001,-382.622478,0.00039726,120]
[404728048,1770496255010,-151.0,0.00039726,120]